bitfinex-derivatives/quotes_ETHF0:USTF0_20230101
["timestamp","ask_amount","ask_price","bid_price","bid_amount"]
[1672532516226,7.75687409,1196.4,1196.3,11.362]
[1672532516432,7.75687409,1196.4,1196.3,11.35963304]
[1672532518429,12.1378498,1196.4,1196.3,2.99763304]
[1672532518849,8.38097571,1196.4,1196.3,2.99763304]
[1672532519475,8.38097571,1196.4,1196.3,11.35863304]
[1672532519700,12.13746594,1196.4,1196.3,11.35863304]
[1672532520546,12.13746594,1196.4,1196.3,2.99763304]
[1672532520754,12.13746594,1196.4,1196.3,11.35863304]
[1672532520961,12.13746594,1196.4,1196.3,2.99763304]
[1672532521171,8.38097571,1196.4,1196.3,2.99763304]
[1672532522645,12.13839866,1196.4,1196.3,11.35863304]
[1672532522856,3.75742295,1196.4,1196.3,12.60741236]
[1672532523066,8.25742295,1196.4,1196.3,12.60741236]
[1672532523707,3.75742295,1196.4,1196.3,12.60741236]
[1672532524121,3.75742295,1196.5,1196.3,13.24058531]
[1672532524330,8.25742295,1196.5,1196.4,1.25385517]
[1672532524543,8.25742295,1196.5,1196.3,14.49444048]
[1672532524758,8.25742295,1196.5,1196.4,1.25385517]
[1672532525075,12.63839866,1196.5,1196.3,14.49444048]
[1672532525271,8.25742295,1196.5,1196.3,14.49444048]
[1672532525703,3.75742295,1196.5,1196.3,14.49444048]
[1672532525908,3.75742295,1196.5,1196.3,25.61040691]
[1672532525909,8.25742295,1196.5,1196.3,25.61040691]
[1672532528650,3.75742295,1196.5,1196.3,25.61040691]
[1672532528860,6.75742295,1196.5,1196.3,25.61040691]
[1672532530017,3.75742295,1196.5,1196.3,25.61040691]
[1672532530328,8.25742295,1196.5,1196.3,25.61040691]
[1672532531481,3.0,1196.4,1196.3,25.61040691]
[1672532531693,8.25742295,1196.5,1196.3,25.61040691]
[1672532535578,8.25742295,1196.5,1196.3,23.72845464]
[1672532535579,3.0,1196.4,1196.3,23.72845464]
[1672532536731,8.25742295,1196.5,1196.3,25.61040691]
[1672532537785,8.25742295,1196.5,1196.3,23.72845464]
[1672532538736,8.25742295,1196.5,1196.3,2.99763304]
[1672532538936,3.75742295,1196.4,1196.3,2.99763304]
[1672532539149,6.75742295,1196.4,1196.2,9.61485517]
[1672532539361,6.75742295,1196.4,1196.3,4.5]
[1672532541566,6.75742295,1196.4,1196.3,12.861]
[1672532541783,3.0,1196.4,1196.3,12.861]
[1672532542200,3.0,1196.4,1196.3,14.11485517]
[1672532543045,8.25742295,1196.5,1196.3,25.1634252]
[1672532548091,12.63839866,1196.5,1196.3,12.861]
[1672532548291,12.63839866,1196.5,1196.3,4.5]
[1672532549025,3.75742295,1196.4,1196.3,4.5]
[1672532551561,3.75742295,1196.4,1196.2,14.49680744]
[1672532551761,3.75742295,1196.4,1196.3,4.5]
[1672532555450,3.75742295,1196.4,1196.2,14.49680744]
[1672532555664,3.75742295,1196.4,1196.2,12.61485517]
[1672532555870,6.75742295,1196.3,1196.2,11.361]
[1672532556715,3.0,1196.3,1196.2,12.61485517]
[1672532557129,3.0,1196.3,1196.2,11.361]
[1672532557342,3.0,1196.3,1196.2,3.0]
[1672532557661,6.75742295,1196.3,1196.1,14.11485517]
[1672532557871,6.75742295,1196.3,1196.2,3.0]
[1672532558499,6.75742295,1196.3,1196.0,1.25385517]
[1672532558708,3.75742295,1196.2,1196.0,1.25385517]
[1672532558924,3.75742295,1196.2,1195.9,3.13580744]
[1672532559130,8.13839866,1196.2,1196.0,4.5]
[1672532559345,3.75742295,1196.2,1196.0,4.5]
[1672532559558,4.5,1196.1,1196.0,4.5]
[1672532560182,4.5,1196.1,1195.9,11.49680744]
[1672532560398,4.5,1196.1,1196.0,4.5]
[1672532568174,4.5,1196.1,1195.9,9.61485517]
[1672532568388,4.5,1196.1,1196.0,4.5]
[1672532572378,6.75742295,1196.3,1196.0,4.5]
[1672532572589,8.25742295,1196.3,1196.0,4.5]
[1672532575851,4.5,1196.3,1196.0,4.5]
[1672532576056,4.5,1196.3,1196.0,5.75385517]
[1672532577107,4.5,1196.3,1196.0,14.11485517]
[1672532579426,4.5,1196.3,1196.0,12.861]
[1672532579628,8.25742295,1196.3,1196.0,12.861]
[1672532580368,8.25742295,1196.3,1196.0,4.5]
[1672532583209,8.25742295,1196.3,1196.0,5.75385517]
[1672532586573,8.25742295,1196.3,1196.0,5.74640862]
[1672532589940,12.63839866,1196.3,1196.0,5.74640862]
[1672532593089,3.75742295,1196.2,1196.0,5.74640862]
[1672532593511,3.0,1196.1,1196.0,5.74640862]
[1672532595403,3.0,1196.1,1196.0,7.62836089]
[1672532596771,3.75742295,1196.2,1196.0,7.62836089]
[1672532598354,3.75742295,1196.2,1196.1,1.25385517]
[1672532598879,3.75742295,1196.2,1196.0,7.62836089]
[1672532599300,3.75742295,1196.2,1196.1,1.25385517]
[1672532608762,12.63839866,1196.3,1196.1,3.13580744]
[1672532609072,12.63839866,1196.3,1196.2,3.0]
[1672532610441,8.25742295,1196.3,1196.2,3.0]
[1672532610651,8.25742295,1196.3,1196.2,4.25385517]
[1672532611386,3.75742295,1196.3,1196.2,4.25385517]
[1672532612655,8.13839866,1196.4,1196.2,4.25385517]
[1672532612857,3.75742295,1196.4,1196.3,1.25386191]
[1672532613062,8.25742295,1196.4,1196.2,6.13581418]
[1672532613693,8.25742295,1196.4,1196.2,4.25386191]
[1672532613910,8.25742295,1196.4,1196.2,6.13581418]
[1672532615068,8.25742295,1196.4,1196.2,4.25386191]
[1672532615699,8.25459932,1196.4,1196.2,6.13581418]
[1672532616327,8.25459932,1196.4,1196.2,14.49681418]
[1672532617377,4.5,1196.4,1196.2,14.49681418]
[1672532618011,4.5,1196.4,1196.2,12.61486191]
[1672532623591,4.5,1196.5,1196.2,14.49681418]
[1672532623900,4.5,1196.5,1196.3,1.25386191]
[1672532624114,4.5,1196.5,1196.2,25.20264193]
[1672532624318,4.5,1196.5,1196.3,1.25386191]
[1672532625275,4.5,1196.5,1196.2,25.20264193]
[1672532626218,4.5,1196.5,1196.3,1.25386191]
[1672532627271,4.5,1196.5,1196.2,25.20264193]
[1672532628304,4.5,1196.5,1196.3,1.25386191]
[1672532629366,4.5,1196.5,1196.2,25.20264193]
[1672532630832,4.5,1196.5,1196.3,1.25386191]
[1672532632949,4.5,1196.5,1196.2,25.20264193]
[1672532640722,8.24721339,1196.5,1196.2,12.61486191]
[1672532645566,12.6281891,1196.5,1196.2,12.61486191]
[1672532646192,8.24721339,1196.5,1196.2,14.49681418]
[1672532647241,12.6281891,1196.5,1196.2,14.49681418]
[1672532649248,3.74721339,1196.4,1196.2,14.49681418]
[1672532659239,3.74721339,1196.4,1196.3,1.25386191]
[1672532660603,12.6281891,1196.5,1196.3,1.25386191]
[1672532660920,8.24721339,1196.5,1196.3,1.25386191]
[1672532661552,12.6281891,1196.5,1196.3,1.25386191]
[1672532662497,3.74721339,1196.4,1196.3,1.25386191]
[1672532663866,12.6281891,1196.5,1196.3,1.25386191]
[1672532669121,3.74721339,1196.4,1196.3,1.25386191]
[1672532670380,3.74721339,1196.4,1196.2,14.49681418]
[1672532670698,3.74721339,1196.4,1196.1,1.25386191]
[1672532670699,4.38097571,1196.3,1196.1,1.25386191]
[1672532670898,8.1281891,1196.3,1196.1,1.25386191]
[1672532671109,3.74721339,1196.2,1196.1,5.75386191]
[1672532671322,6.74721339,1196.2,1196.1,5.75386191]
[1672532671531,6.74721339,1196.2,1196.1,4.5]
[1672532672163,3.0,1196.2,1196.1,4.5]
[1672532672369,3.0,1196.2,1196.0,11.49681418]
[1672532672581,6.74721339,1196.2,1196.1,4.5]
[1672532673106,3.0,1196.2,1196.1,4.5]
[1672532675318,3.0,1196.2,1196.0,3.13581418]
[1672532675520,3.0,1196.2,1196.1,4.5]
[1672532676785,6.74721339,1196.2,1196.1,4.5]
[1672532677215,3.0,1196.2,1196.1,4.5]
[1672532678268,6.74721339,1196.2,1196.0,4.5]
[1672532681107,3.0,1196.2,1196.0,4.5]
[1672532681731,3.0,1196.2,1196.0,5.75386191]
[1672532685201,3.0,1196.2,1196.0,5.75051502]
[1672532687625,3.0,1196.2,1196.0,4.49665311]
[1672532687826,3.0,1196.2,1196.0,5.75051502]
[1672532696881,3.0,1196.2,1196.0,4.49665311]
[1672532699090,3.0,1196.2,1196.0,5.75051502]
[1672532699629,3.0,1196.2,1196.0,4.49665311]
[1672532699830,3.0,1196.2,1196.0,5.75051502]
[1672532700363,3.0,1196.2,1196.0,4.49665311]
[1672532700674,3.0,1196.2,1196.0,5.75051502]
[1672532701724,3.0,1196.2,1196.0,4.49665311]
[1672532702251,3.0,1196.2,1196.0,5.75051502]
[1672532704777,8.24721339,1196.3,1196.0,5.75051502]
[1672532704778,8.24721339,1196.3,1196.0,25.1130806]
[1672532704982,3.74721339,1196.3,1196.0,26.99503287]
[1672532705193,8.24721339,1196.3,1196.0,26.99503287]
[1672532705400,8.24721339,1196.3,1196.1,1.25386191]
[1672532705823,8.24721339,1196.3,1196.0,26.99503287]
[1672532706032,8.24721339,1196.3,1196.1,1.25386191]
[1672532708032,8.24721339,1196.3,1196.2,3.0]
[1672532709288,12.6281891,1196.3,1196.2,3.0]
[1672532712977,8.24721339,1196.3,1196.2,3.0]
[1672532714443,4.5,1196.3,1196.2,3.0]
[1672532714654,12.63567487,1196.3,1196.2,3.0]
[1672532714862,8.25469916,1196.3,1196.2,3.0]
[1672532715077,3.75469916,1196.3,1196.2,4.25386191]
[1672532715282,8.13567487,1196.4,1196.2,4.25386191]
[1672532715492,8.13567487,1196.4,1196.2,6.13581418]
[1672532715702,3.75469916,1196.4,1196.2,6.13581418]
[1672532716025,8.25469916,1196.4,1196.2,6.13581418]
[1672532716437,8.25469916,1196.4,1196.2,14.49681418]
[1672532716647,8.25469916,1196.4,1196.2,12.61486191]
[1672532716855,12.63567487,1196.4,1196.2,12.61486191]
[1672532717065,6.75469916,1196.3,1196.2,12.61486191]
[1672532718648,3.0,1196.3,1196.2,12.61486191]
[1672532719907,12.63567487,1196.4,1196.2,12.61486191]
[1672532721057,8.25469916,1196.4,1196.2,12.61486191]
[1672532723586,3.75469916,1196.4,1196.2,12.61486191]
[1672532723897,8.25469916,1196.4,1196.2,12.61486191]
[1672532724323,3.0,1196.3,1196.2,11.361]
[1672532724536,8.25469916,1196.4,1196.2,12.61486191]
[1672532726109,3.0,1196.3,1196.2,12.61486191]
[1672532726525,8.25469916,1196.4,1196.2,12.61486191]
[1672532728839,3.0,1196.3,1196.2,12.61486191]
[1672532729264,8.25469916,1196.4,1196.2,12.61486191]
[1672532733257,3.75469916,1196.4,1196.2,12.61486191]
[1672532733471,4.5,1196.4,1196.2,14.49681418]
[1672532734830,4.5,1196.4,1196.2,12.61486191]
[1672532736938,4.5,1196.4,1196.2,14.49681418]
[1672532738197,3.5,1196.4,1196.2,14.49681418]
[1672532739458,7.25469916,1196.4,1196.2,14.49681418]
[1672532739669,3.5,1196.4,1196.2,14.49681418]
[1672532740510,3.5,1196.4,1196.2,24.94009164]
[1672532741246,3.5,1196.4,1196.2,23.05813937]
[1672532741453,7.25469916,1196.4,1196.2,23.05813937]
[1672532741772,8.13567487,1196.5,1196.2,24.94009164]
[1672532742718,4.5,1196.4,1196.2,24.94009164]
[1672532744713,8.25469916,1196.4,1196.2,24.94009164]
[1672532745030,3.75469916,1196.4,1196.2,24.94009164]
[1672532745237,8.25469916,1196.4,1196.2,24.94009164]
[1672532750182,3.0,1196.3,1196.2,24.94009164]
[1672532751444,8.25469916,1196.4,1196.2,24.94009164]
[1672532754279,3.0,1196.3,1196.2,23.05813937]
[1672532755005,6.75469916,1196.3,1196.2,23.05813937]
[1672532755435,6.75469916,1196.3,1196.2,24.94009164]
[1672532756273,3.0,1196.3,1196.2,24.94009164]
[1672532756478,12.63567487,1196.4,1196.2,24.94009164]
[1672532758269,8.25469916,1196.4,1196.2,24.94009164]
[1672532758482,8.25469916,1196.4,1196.3,1.25386191]
[1672532761844,8.25469916,1196.4,1196.2,24.94009164]
[1672532762049,12.63567487,1196.4,1196.2,24.94009164]
[1672532762263,8.25469916,1196.4,1196.3,1.25386191]
[1672532762895,3.75469916,1196.4,1196.3,11.49681418]
[1672532763100,3.75469916,1196.5,1196.4,12.861]
[1672532763306,8.25469916,1196.5,1196.4,14.114902]
[1672532764149,3.75469916,1196.5,1196.4,14.114902]
[1672532764782,6.75469916,1196.5,1196.4,14.114902]
[1672532765204,3.75469916,1196.5,1196.4,14.114902]
[1672532765417,8.25469916,1196.5,1196.4,14.114902]
[1672532765628,8.25469916,1196.5,1196.4,12.861]
[1672532766048,8.25469916,1196.5,1196.4,14.114902]
[1672532766258,8.25469916,1196.5,1196.4,12.861]
[1672532767092,8.25469916,1196.5,1196.4,14.114902]
[1672532768990,8.25469916,1196.5,1196.4,12.861]
[1672532781924,3.75469916,1196.5,1196.4,12.861]
[1672532782238,8.25469916,1196.5,1196.4,12.861]
[1672532782439,3.75469916,1196.5,1196.4,12.861]
[1672532782863,8.13567487,1196.6,1196.4,12.861]
[1672532783073,3.75469916,1196.6,1196.4,14.14245471]
[1672532783281,3.75469916,1196.7,1196.5,1.253902]
[1672532783699,4.5,1196.6,1196.5,1.253902]
[1672532783915,4.5,1196.6,1196.5,12.614902]
[1672532784132,8.25469916,1196.6,1196.5,3.0]
[1672532784335,8.88097571,1196.6,1196.4,4.5]
[1672532784551,3.75638534,1196.5,1196.4,4.5]
[1672532785815,3.75638534,1196.5,1196.3,3.13585427]
[1672532786017,3.0,1196.4,1196.3,5.753902]
[1672532789590,8.13736105,1196.5,1196.3,5.753902]
[1672532789799,3.75638534,1196.5,1196.4,3.0]
[1672532790221,8.13736105,1196.5,1196.4,3.0]
[1672532794424,4.38097571,1196.5,1196.4,3.0]
[1672532797584,8.13798365,1196.5,1196.4,3.0]
[1672532799167,8.13798365,1196.5,1196.3,5.753902]
[1672532799379,8.13798365,1196.5,1196.3,4.5]
[1672532799380,6.75700794,1196.4,1196.3,4.5]
[1672532799895,6.75700794,1196.4,1196.2,1.253902]
[1672532800106,11.13798365,1196.4,1196.2,4.5]
[1672532800318,8.25700794,1196.3,1196.2,5.753902]
[1672532800737,3.75700794,1196.3,1196.2,5.753902]
[1672532800951,11.13798365,1196.4,1196.2,5.753902]
[1672532802418,4.5,1196.3,1196.2,5.753902]
[1672532803365,4.5,1196.3,1196.2,7.63585427]
[1672532804103,4.5,1196.3,1196.2,5.753902]
[1672532804315,4.5,1196.3,1196.2,7.63585427]
[1672532805483,6.75700794,1196.4,1196.2,7.63585427]
[1672532805686,8.25700794,1196.4,1196.3,3.0]
[1672532807681,8.25700794,1196.4,1196.3,2.99737121]
[1672532808106,12.63798365,1196.4,1196.3,2.99737121]
[1672532808632,8.25700794,1196.4,1196.3,2.99737121]
[1672532808952,3.75700794,1196.4,1196.3,2.99737121]
[1672532809581,6.75700794,1196.4,1196.3,2.99737121]
[1672532809793,8.25700794,1196.4,1196.3,2.99737121]
[1672532810003,6.75700794,1196.4,1196.3,2.99737121]
[1672532810215,3.75700794,1196.4,1196.3,2.99737121]
[1672532810846,3.75700794,1196.4,1196.3,4.25127321]
[1672532811057,8.25700794,1196.4,1196.3,2.99737121]
[1672532811479,3.75700794,1196.4,1196.3,2.99737121]
[1672532811790,3.75700794,1196.4,1196.3,4.25127321]
[1672532812318,3.75700794,1196.4,1196.3,2.99737121]
[1672532813263,8.13798365,1196.5,1196.3,4.25127321]
[1672532813678,8.13798365,1196.5,1196.3,12.61227321]
[1672532814205,3.5,1196.4,1196.3,11.35837121]
[1672532814416,8.25700794,1196.4,1196.3,12.61227321]
[1672532815048,8.25700794,1196.4,1196.3,11.35837121]
[1672532815251,8.25700794,1196.4,1196.3,12.61227321]
[1672532816107,8.25700794,1196.4,1196.3,11.35837121]
[1672532816524,8.25700794,1196.4,1196.3,12.61227321]
[1672532816737,7.25700794,1196.4,1196.3,12.61227321]
[1672532817059,7.25700794,1196.4,1196.3,11.35837121]
[1672532817265,3.5,1196.4,1196.3,12.61227321]
[1672532817578,8.13798365,1196.5,1196.3,12.61227321]
[1672532818421,3.75700794,1196.4,1196.3,12.61227321]
[1672532818840,8.13798365,1196.5,1196.3,12.61227321]
[1672532819788,8.13798365,1196.5,1196.3,4.25127321]
[1672532820099,4.5,1196.4,1196.3,4.25127321]
[1672532821567,8.25700794,1196.4,1196.3,4.25127321]
[1672532825874,3.75700794,1196.4,1196.3,4.25127321]
[1672532826085,3.75700794,1196.4,1196.3,12.61227321]
[1672532828824,8.13798365,1196.5,1196.3,12.61227321]
[1672532829033,8.13798365,1196.5,1196.3,14.49422548]
[1672532829349,8.13798365,1196.5,1196.3,12.61227321]
[1672532829876,8.13798365,1196.5,1196.3,14.49422548]
[1672532830299,8.13798365,1196.5,1196.3,12.61227321]
[1672532830818,8.13798365,1196.5,1196.3,14.49422548]
[1672532831028,8.13798365,1196.5,1196.3,12.61227321]
[1672532832613,7.25700794,1196.4,1196.3,12.61227321]
[1672532833138,8.13798365,1196.5,1196.3,12.61227321]
[1672532833874,3.75700794,1196.4,1196.3,12.61227321]
[1672532834083,6.75700794,1196.4,1196.3,12.61227321]
[1672532834399,8.25700794,1196.4,1196.3,12.61227321]
[1672532834715,6.75700794,1196.4,1196.3,12.61227321]
[1672532834923,4.5,1196.4,1196.3,12.61227321]
[1672532835449,8.25700794,1196.4,1196.3,12.61227321]
[1672532835865,4.5,1196.4,1196.3,12.61227321]
[1672532836494,8.25700794,1196.4,1196.3,12.61227321]
[1672532841128,3.0,1196.4,1196.3,14.49422548]
[1672532841332,4.5,1196.4,1196.3,14.49422548]
[1672532841543,8.25700794,1196.4,1196.3,14.49422548]
[1672532841961,8.25700794,1196.4,1196.3,12.61227321]
[1672532842494,8.25700794,1196.4,1196.3,14.49422548]
[1672532842703,8.25700794,1196.4,1196.3,12.61227321]
[1672532843017,8.25700794,1196.4,1196.3,14.49422548]
[1672532843438,8.25700794,1196.4,1196.3,4.25127321]
[1672532849536,12.63798365,1196.4,1196.3,4.25127321]
[1672532849850,8.25700794,1196.4,1196.3,4.25127321]
[1672532852580,3.75700794,1196.4,1196.3,6.13322548]
[1672532852893,4.38097571,1196.5,1196.3,14.49422548]
[1672532853107,4.5,1196.6,1196.5,8.361]
[1672532853319,4.5,1196.6,1196.5,9.61504696]
[1672532853727,8.88097571,1196.6,1196.5,9.61504696]
[1672532854149,4.5,1196.6,1196.5,9.61504696]
[1672532856468,4.5,1196.6,1196.5,8.361]
[1672532857831,4.5,1196.6,1196.5,9.61504696]
[1672532858360,4.5,1196.6,1196.5,8.361]
[1672532859621,4.5,1196.6,1196.5,9.61504696]
[1672532860460,4.5,1196.6,1196.5,8.361]
[1672532861205,3.0,1196.7,1196.5,8.361]
[1672532861418,4.5,1196.7,1196.6,4.5]
[1672532871713,4.5,1196.8,1196.6,4.5]
[1672532873181,4.5,1196.8,1196.6,15.31902575]
[1672532877810,4.5,1196.8,1196.6,23.68002575]
[1672532879803,4.38097571,1196.9,1196.6,23.68002575]
[1672532880020,4.5,1196.8,1196.6,23.68002575]
[1672532881799,4.5,1196.8,1196.6,12.861]
[1672532882012,4.5,1196.8,1196.6,4.5]
[1672532883272,4.5,1196.8,1196.6,23.80233887]
[1672532885488,4.5,1196.8,1196.6,12.861]
[1672532886008,4.5,1196.8,1196.6,23.80124808]
[1672532886215,4.5,1196.8,1196.6,12.861]
[1672532886424,4.5,1196.8,1196.6,23.77283558]
[1672532887267,4.5,1196.8,1196.6,15.41183558]
[1672532887477,4.5,1196.8,1196.6,12.861]
[1672532887793,4.5,1196.8,1196.6,23.82865583]
[1672532890730,4.5,1196.8,1196.6,25.08270279]
[1672532890941,4.5,1196.8,1196.6,23.82865583]
[1672532891678,4.5,1196.8,1196.6,25.08270279]
[1672532892623,8.88097571,1196.8,1196.6,25.08270279]
[1672532895038,8.88097571,1196.8,1196.6,26.96375182]
[1672532895459,8.88097571,1196.8,1196.6,25.08270279]
[1672532896090,8.88097571,1196.8,1196.6,23.82865583]
[1672532896520,13.88263215,1196.8,1196.6,23.82865583]
[1672532897979,8.88097571,1196.8,1196.6,25.08270279]
[1672532898932,13.88263215,1196.8,1196.6,25.08270279]
[1672532899987,13.88263215,1196.8,1196.6,23.82865583]
[1672532900200,13.88263215,1196.8,1196.6,25.08270279]
[1672532900512,13.88263215,1196.8,1196.6,23.82865583]
[1672532900824,13.88263215,1196.8,1196.6,25.08270279]
[1672532903138,13.88263215,1196.8,1196.6,23.82865583]
[1672532903453,4.38097571,1196.7,1196.6,23.82865583]
[1672532903663,9.50165644,1196.8,1196.6,23.82865583]
[1672532903664,13.88263215,1196.8,1196.6,25.08270279]
[1672532907027,8.88097571,1196.8,1196.6,25.08270279]
[1672532907447,8.88097571,1196.8,1196.6,26.96375182]
[1672532908592,8.88097571,1196.8,1196.6,25.08270279]
[1672532909231,13.88263215,1196.8,1196.6,25.08270279]
[1672532909550,13.88263215,1196.8,1196.6,5.75404696]
[1672532909988,13.88263215,1196.8,1196.6,16.65339166]
[1672532912401,13.88263215,1196.8,1196.6,5.75404696]
[1672532914081,4.38097571,1196.7,1196.6,5.75404696]
[1672532915761,13.88263215,1196.8,1196.6,16.77308251]
[1672532916083,8.88097571,1196.8,1196.6,16.77308251]
[1672532917448,13.88263215,1196.8,1196.6,16.77308251]
[1672532919233,8.88097571,1196.8,1196.6,16.77308251]
[1672532919858,13.88263215,1196.8,1196.6,16.77308251]
[1672532920704,8.88097571,1196.8,1196.6,18.65413154]
[1672532921127,8.88097571,1196.8,1196.6,18.65201326]
[1672532921445,8.88097571,1196.8,1196.6,16.77096423]
[1672532923973,8.88097571,1196.8,1196.6,18.65201326]
[1672532924282,8.88097571,1196.8,1196.6,16.77096423]
[1672532925125,8.88097571,1196.8,1196.6,18.65201326]
[1672532928799,8.88097571,1196.8,1196.6,7.63297771]
[1672532929433,8.88097571,1196.8,1196.6,5.75192868]
[1672532930590,8.88097571,1196.8,1196.6,18.55770965]
[1672532931420,8.88097571,1196.8,1196.6,16.67666062]
[1672532932170,8.88097571,1196.8,1196.6,18.55770965]
[1672532933434,8.88097571,1196.8,1196.6,16.67666062]
[1672532938267,8.88097571,1196.8,1196.6,18.55770965]
[1672532944366,4.38097571,1196.8,1196.6,18.55770965]
[1672532950461,4.38097571,1196.8,1196.6,16.67666062]
[1672532950987,4.38097571,1196.8,1196.6,18.55770965]
[1672532951722,12.38263215,1196.9,1196.7,1.25404696]
[1672532952252,4.38097571,1196.8,1196.7,1.25404696]
[1672532952448,4.38097571,1196.8,1196.6,18.55770965]
[1672532953091,4.38097571,1196.8,1196.7,4.5]
[1672532953401,6.25207055,1196.8,1196.5,8.361]
[1672532953609,10.13775265,1196.7,1196.6,4.5]
[1672532954562,10.13775265,1196.7,1196.4,20.60904613]
[1672532954766,15.14405176,1196.7,1196.6,4.5]
[1672532955716,9.50629911,1196.7,1196.6,4.5]
[1672532958656,13.8831434,1196.7,1196.6,4.5]
[1672532960655,8.87684429,1196.7,1196.6,4.5]
[1672532961694,8.87684429,1196.7,1196.5,3.0]
[1672532962018,8.87684429,1196.7,1196.5,4.5]
[1672532962223,13.8831434,1196.7,1196.5,4.5]
[1672532962862,8.87684429,1196.7,1196.5,4.5]
[1672532964435,13.8831434,1196.7,1196.5,4.5]
[1672532965593,8.87684429,1196.7,1196.5,4.5]
[1672532987041,8.87684429,1196.7,1196.5,12.861]
[1672532988708,13.8831434,1196.7,1196.5,12.861]
[1672532989869,8.87684429,1196.7,1196.5,12.861]
[1672532990712,13.8831434,1196.7,1196.5,12.861]
[1672532992817,4.37684429,1196.6,1196.5,12.861]
[1672532993440,4.37684429,1196.6,1196.5,12.85790938]
[1672532994815,8.13590829,1196.6,1196.5,12.85790938]
[1672532995233,4.37684429,1196.6,1196.5,12.85790938]
[1672532995654,8.13590774,1196.6,1196.5,12.85790938]
[1672532995866,4.37684429,1196.6,1196.5,12.85790938]
[1672533006895,9.3831434,1196.6,1196.5,12.85790938]
[1672533009000,4.37684429,1196.6,1196.5,12.85790938]
[1672533011103,9.3831434,1196.6,1196.5,12.85790938]
[1672533016895,4.37684429,1196.6,1196.5,12.85790938]
[1672533020675,4.37684429,1196.6,1196.5,8.361]
[1672533020885,4.37684429,1196.6,1196.4,19.42764613]
[1672533020886,10.64213006,1196.6,1196.4,19.42764613]
[1672533021096,7.38583794,1196.5,1196.3,14.90604696]
[1672533021409,7.38583794,1196.5,1196.4,4.5]
[1672533021410,12.39213705,1196.5,1196.4,4.5]
[1672533021620,7.38583794,1196.5,1196.4,4.5]
[1672533022247,11.14310531,1196.5,1196.4,4.5]
[1672533022667,8.14310531,1196.5,1196.4,4.5]
[1672533022883,3.75726737,1196.5,1196.4,4.5]
[1672533023091,8.25726737,1196.5,1196.4,4.5]
[1672533023302,8.88583794,1196.5,1196.4,4.5]
[1672533023511,8.88343773,1196.5,1196.4,4.5]
[1672533024882,12.63995641,1196.5,1196.4,4.5]
[1672533025084,8.88343773,1196.5,1196.4,4.5]
[1672533025510,12.63969297,1196.5,1196.4,4.5]
[1672533026659,8.25385503,1196.5,1196.4,4.5]
[1672533026976,8.25385503,1196.5,1196.4,15.12528898]
[1672533027187,3.75625524,1196.5,1196.4,15.12528898]
[1672533028662,8.25625524,1196.5,1196.4,15.12528898]
[1672533029502,3.75625524,1196.5,1196.4,15.12528898]
[1672533029711,8.25625524,1196.5,1196.4,15.12528898]
[1672533030231,8.25625524,1196.5,1196.2,20.71989586]
[1672533030449,3.75625524,1196.3,1196.1,3.13509599]
[1672533030654,3.75625524,1196.3,1196.2,5.75404696]
[1672533031079,8.14209318,1196.4,1196.2,5.75404696]
[1672533031290,3.0,1196.3,1196.2,16.69202136]
[1672533031809,3.0,1196.3,1196.2,15.4379744]
[1672533032336,6.75625524,1196.3,1196.2,4.5]
[1672533034018,3.0,1196.3,1196.2,4.5]
[1672533035599,3.75625524,1196.4,1196.2,15.20508725]
[1672533035909,3.75625524,1196.4,1196.2,16.45913421]
[1672533036856,12.64209318,1196.5,1196.2,16.45913421]
[1672533037067,12.64209318,1196.5,1196.2,15.20508725]
[1672533037381,3.75625524,1196.4,1196.2,15.20508725]
[1672533038642,3.75625524,1196.4,1196.2,23.56608725]
[1672533039588,3.75625524,1196.4,1196.2,24.82013421]
[1672533042636,12.64209318,1196.5,1196.2,24.82013421]
[1672533043160,3.75625524,1196.4,1196.2,24.82013421]
[1672533043372,3.75625524,1196.4,1196.2,23.56608725]
[1672533045897,3.75625524,1196.4,1196.2,24.82013421]
[1672533046108,12.64209318,1196.5,1196.2,24.82013421]
[1672533046629,3.75625524,1196.4,1196.2,24.82013421]
[1672533047153,3.75625524,1196.4,1196.2,23.56608725]
[1672533048314,3.75625524,1196.4,1196.2,24.82013421]
[1672533056196,3.0,1196.3,1196.2,23.56608725]
[1672533057036,8.14209318,1196.4,1196.2,23.56608725]
[1672533057775,3.0,1196.3,1196.2,23.56608725]
[1672533057980,6.75625524,1196.3,1196.2,23.56608725]
[1672533058297,3.75625524,1196.4,1196.2,24.82013421]
[1672533058610,3.0,1196.3,1196.2,24.82013421]
[1672533059138,3.0,1196.3,1196.2,23.56608725]
[1672533059342,8.14209318,1196.4,1196.2,24.82013421]
[1672533060298,3.75625524,1196.4,1196.2,24.82013421]
[1672533062083,3.75625524,1196.4,1196.2,26.70118324]
[1672533062506,3.75625524,1196.4,1196.2,24.82013421]
[1672533063975,8.14209318,1196.4,1196.2,24.82013421]
[1672533064185,3.0,1196.3,1196.2,24.82013421]
[1672533064716,8.14209318,1196.4,1196.2,24.82013421]
[1672533064925,3.75625524,1196.4,1196.2,24.82013421]
[1672533065456,8.14209318,1196.4,1196.2,24.82013421]
[1672533068082,3.75625524,1196.3,1196.2,24.82013421]
[1672533069234,3.75625524,1196.3,1196.2,26.70118324]
[1672533069762,3.75625524,1196.3,1196.2,18.34018324]
[1672533080707,3.75625524,1196.3,1196.2,16.45913421]
[1672533081227,6.75625524,1196.3,1196.2,16.45913421]
[1672533081441,3.75625524,1196.3,1196.2,16.45913421]
[1672533083121,3.75625524,1196.3,1196.2,18.34018324]
[1672533091012,3.75625524,1196.3,1196.2,7.63509599]
[1672533091431,3.75625524,1196.3,1196.2,16.45334401]
[1672533091742,3.75625524,1196.3,1196.2,18.33439304]
[1672533100683,3.75625524,1196.3,1196.2,17.08034608]
[1672533100994,8.14209318,1196.4,1196.2,17.08034608]
[1672533101203,8.14209318,1196.4,1196.3,1.25438428]
[1672533102991,8.14209318,1196.4,1196.3,1.246612]
[1672533103309,8.14209318,1196.4,1196.2,17.08034608]
[1672533103517,6.75625524,1196.3,1196.2,15.19929705]
[1672533103726,3.75625524,1196.3,1196.2,17.08034608]
[1672533125177,3.75625524,1196.3,1196.2,6.38104903]
[1672533126846,11.14209318,1196.3,1196.2,4.5]
[1672533127162,6.75625524,1196.3,1196.2,4.5]
[1672533135558,6.75625524,1196.3,1196.0,15.53304903]